Cogmind - Beta 9.4 @@@ ROGUE MODE // 2020.02.04 @ 16:07:14 // AFD2018/Launchers Player: sideriver81 Result: Self-destructed Performance ------------- Evolutions (1) 500 Regions Visited (2) 400 Robots Destroyed (4) 20 Value Destroyed (151) 151 Prototype IDs (0) 0 Alien Tech Used (0) 0 Bonus (0) 0 TOTAL SCORE: 1071 Bonus ------- None Cogmind --------- Core Integrity 346/400 Matter 3/300 Energy 29/100 System Corruption 2% Temperature Cool (0) Movement Walking (120) Location -9/Materials Parts ------- > --- POWER (1) -------- (None) > --- PROPULSION (3) --- Aluminum Leg Aluminum Leg > --- UTILITY (3) ------ Small Storage Unit Targeting Computer Hacking Suite > --- WEAPON (2) ------- EMP Blaster Grenade Launcher > --- INVENTORY (6) ---- Sensor Array EMP Blaster Rocket Launcher Rocket Launcher Rocket Launcher Mini Grenade Launcher Peak State ------------ > --- POWER ------------ (None) > --- PROPULSION ------- Aluminum Leg Aluminum Leg > --- UTILITY ---------- Small Storage Unit Targeting Computer Hacking Suite > --- WEAPON ----------- EMP Blaster Grenade Launcher > --- INVENTORY -------- Sensor Array EMP Blaster Rocket Launcher Rocket Launcher Rocket Launcher Mini Grenade Launcher [Rating: 11] Favorites ----------- Power None Propulsion Aluminum Leg Leg Aluminum Leg Utility Targeting Computer Device Sensor Array Storage Small Storage Unit Processor Targeting Computer Hackware Hacking Suite Weapon Grenade Launcher Launcher Grenade Launcher Build | -11 -10 -9 ------- Run | Scr Mat Mat Slots Evolved 2 | . . 2 Power . | . . . Propulsion 1 | . . 1 Utility 1 | . . 1 Weapon . | . . . Parts Attached 10 | . 8 2 Power . | . . . Engine . | . . . Core . | . . . Reactor . | . . . Propulsion 2 | . 2 . Treads . | . . . Leg 2 | . 2 . Wheel . | . . . Hover . | . . . Flight . | . . . Utility 5 | . 4 1 Device 1 | . 1 . Storage 1 | . . 1 Processor 2 | . 2 . Hackware 1 | . 1 . Protection . | . . . Artifact . | . . . Weapon 3 | . 2 1 Energy Gun . | . . . Energy Cannon . | . . . Ballistic Gun . | . . . Ballistic Cannon . | . . . Launcher 3 | . 2 1 Special Weapon . | . . . Impact Weapon . | . . . Slashing Weapon . | . . . Piercing Weapon . | . . . Special Melee Weapon . | . . . Unidentified Prototypes . | . . . Parts Lost . | . . . Power . | . . . Propulsion . | . . . Utility . | . . . Weapon . | . . . Highest Loss Streak . | . . . Average Slot Usage (%) 67 | . 59 76 Leg 17 | . 14 22 Storage 5 | . . 10 Processor 15 | . 18 11 Hackware 9 | . 8 11 Launcher 19 | . 17 22 Naked Turns . | . . . Heaviest Build 11 | 3 6 11 Greatest Support 20 | 3 20 20 Greatest Overweight (x) . | . . . Average Overweight (x) . | . . . Largest Inventory Capacity 6 | 4 4 6 Average Capacity 4 | 4 4 5 Most Carried 6 | 4 4 6 Average Carried 4 | 4 3 5 Final Capacity 6 | 4 4 6 Final Carried 6 | 4 4 6 Class Distribution -------------------- 100% | Mutant Dominant Class ---------------- Mutant | -10/Materials Mutant | -9/Materials Resources | -11 -10 -9 ----------- Run | Scr Mat Mat Matter Collected 60 | . 60 . Remotely . | . . . Salvage Created 110 | . 60 50 Parts 5 | . 3 2 Haulers Intercepted . | . . . Recyclers Shooed . | . . . Parts Field Recycled . | . . . Retrieved Matter . | . . . Parts Self-Destructed . | . . . Prevented . | . . . Kills | -11 -10 -9 ------- Run | Scr Mat Mat Combat Hostiles Destroyed 3 | . 2 1 AOE 3 | . 2 1 Classes Destroyed 2 | . 2 . Operator 1 | . 1 . Grunt 3 | . 2 1 Best Kill Streak 2 | . 2 1 Combat Bots Only 2 | . 2 1 Max Kills in Single Turn 1 | . 1 1 Gunslinging . | . . . Exploded 1 | . 1 1 Melee . | . . . Uniques/NPCs Destroyed . | . . . Combat | -11 -10 -9 -------- Run | Scr Mat Mat Damage Taken 384 | . 170 214 Core 108 | . 54 54 Absorbed by Shields . | . . . Core Remaining (%) 89 | 100 78 . Volleys Fired 8 | . 5 3 Largest 1 | . 1 1 Hottest 33 | . 30 33 Shots Fired 8 | . 5 3 Gun . | . . . Cannon . | . . . Launcher 8 | . 5 3 Special . | . . . Kinetic . | . . . Thermal . | . . . Explosive 5 | . 5 . Electromagnetic 3 | . . 3 Robot Hit Streak 2 | . 2 1 Robot Miss Streak 2 | . 2 1 Penetration Max . | . . . Secondary Targets . | . . . Shots Hit Robots 3 | . 2 1 Core Hits 10 | . 7 3 Critical Hits . | . . . Critical Kills . | . . . Critical Parts Destroyed . | . . . Melee Attacks . | . . . Impact . | . . . Slashing . | . . . Piercing . | . . . Sneak Attacks . | . . . Combat Hostiles . | . . . Follow-up Attacks . | . . . Damage Inflicted 304 | . 228 76 Guns . | . . . Cannons . | . . . Explosions 299 | . 228 71 Melee . | . . . Ramming 5 | . . 5 Kinetic . | . . . Thermal . | . . . Explosive 228 | . 228 . Electromagnetic 71 | . . 71 Impact . | . . . Slashing . | . . . Piercing . | . . . Highest Corruption 2 | . . 2 Average Corruption 2 | . . 2 Corruption Purged . | . . . Overload Shots . | . . . Overflow Damage . | . . . Projectiles . | . . . Explosions . | . . . Melee . | . . . Knockbacks . | . . . Impact . | . . . Kinetic . | . . . Secondary . | . . . Self-Inflicted Damage 70 | . 62 8 Shots 4 | . 3 1 Rammed 2 | . . 2 Targets Rammed 2 | . . 2 Kicked . | . . . Crushed . | . . . Highest Temperature . | . . . Average Temperature . | . . . Received Heat Transfer 120 | . 63 57 Siege Activations . | . . . Robots Corrupted . | . . . Combat Hostiles . | . . . Parts Fried . | . . . Impact Corruptions . | . . . Robots Melted . | . . . Combat Hostiles . | . . . Parts Melted . | . . . Heat Transferred . | . . . Parts Sabotaged . | . . . Parts Stolen . | . . . Parts Stripped . | . . . Power Chain Reactions . | . . . Missiles Intercepted . | . . . Alert | -11 -10 -9 ------- Run | Scr Mat Mat Peak Influence 317 | . 317 198 Average Influence 193 | . 243 142 Maximum Alert Level 1 | . 1 . Low Security (%) 59 | 100 19 100 Level 1 40 | . 80 . Level 2 . | . . . Level 3 . | . . . Level 4 . | . . . Level 5 . | . . . High Security . | . . . Max Security . | . . . Squads Dispatched . | . . . Investigation . | . . . Extermination . | . . . Reinforcement . | . . . Assault . | . . . Garrison . | . . . Intercept . | . . . Construction Impeded . | . . . Haulers Reinforced . | . . . Stealth | -11 -10 -9 --------- Run | Scr Mat Mat Distress Signals . | . . . Communications Jammed . | . . . Distress Signals . | . . . Times Spotted 13 | . 8 5 Peak Tracking Total 4 | . 2 4 Tactical Retreats 1 | . 1 . Traps | -11 -10 -9 ------- Run | Scr Mat Mat Traps Triggered . | . . . Indirectly . | . . . Trap Hack Attempts . | . . . Triggered . | . . . Disarmed . | . . . Reprogrammed . | . . . Reused . | . . . Traps Extracted . | . . . Installed . | . . . Triggered . | . . . Machines | -11 -10 -9 ---------- Run | Scr Mat Mat Machines Disabled 2 | . 1 1 Max in Single Turn 1 | . 1 1 Machines Sabotaged . | . . . Garrisons Compromised . | . . . Overloaded Fab Kills . | . . . Fab Network Shutdowns . | . . . Hacking | -11 -10 -9 --------- Run | Scr Mat Mat Machines Accessed 2 | . 2 . Terminals 2 | . 2 . Fabricators . | . . . Repair Stations . | . . . Recycling Units . | . . . Scanalyzers . | . . . Garrison Access . | . . . Total Hacks 6 | . 6 . Successful 4 | . 4 . Failed 2 | . 2 . Catastrophic . | . . . Database Lockouts . | . . . Manual 5 | . 5 . Terminals 6 | . 6 . Fabricators . | . . . Repair Stations . | . . . Recycling Units . | . . . Scanalyzers . | . . . Garrison Access . | . . . Terminal Hacks 2 | . 2 . Part Schematic 1 | . 1 . Locate Traps 1 | . 1 . Fabricator Hacks . | . . . Repair Station Hacks . | . . . Recycling Unit Hacks . | . . . Scanalyzer . | . . . Garrison Access Hacks . | . . . Unauthorized Hacks 6 | . 6 . Terminals 2 | . 2 . Assimilate 1 | . 1 . Botnet 1 | . 1 . Fabricators . | . . . Repair Stations . | . . . Recycling Units . | . . . Scanalyzers . | . . . Garrison Access . | . . . Data Cores Recovered . | . . . Used . | . . . Hacking Detections 2 | . 2 . Full Trace Events . | . . . Feedback Events . | . . . Feedback Blocked . | . . . Robot Schematics Acquired . | . . . Robots Built . | . . . Matter . | . . . Time . | . . . Total Robot Build Rating . | . . . Part Schematics Acquired 1 | . 1 . Parts Built . | . . . Matter . | . . . Time . | . . . Total Part Build Rating . | . . . Parts Repaired . | . . . Time . | . . . Parts Recycled . | . . . Recycled Matter . | . . . Retrieved Matter . | . . . Retrieved Components . | . . . Parts Scanalyzed . | . . . Part Schematics Acquired . | . . . Parts Damaged . | . . . Bothacking | -11 -10 -9 ------------ Run | Scr Mat Mat Used RIF Installer . | . . . Robots Hacked . | . . . Non-combat . | . . . Combat . | . . . Robot Hacks Applied . | . . . Relay Couplers Released . | . . . Robots Rewired . | . . . Allies Hacked . | . . . Hacks Repelled . | . . . Allies | -11 -10 -9 -------- Run | Scr Mat Mat Total Allies . | . . . Largest Group . | . . . Highest-Rated Group . | . . . Highest-Rated Ally . | . . . Total Orders . | . . . Ally Attacks . | . . . Total Damage . | . . . Kills . | . . . Allies Corrupted . | . . . Allies Melted . | . . . Intel | -11 -10 -9 ------- Run | Scr Mat Mat Robot Analysis Total . | . . . Derelict Logs Recovered . | . . . Drone Launches . | . . . Drone Recoveries . | . . . Exploration | -11 -10 -9 ------------- Run | Scr Mat Mat Turns Passed 393 | 1 200 192 Spaces Moved 378 | 1 233 144 Core 158 | 1 157 . Treads . | . . . Legs 220 | . 76 144 Wheels . | . . . Hover . | . . . Flight . | . . . Fastest Speed 50 | 50 50 120 Average Speed 90 | 50 72 120 Slowest Speed 120 | 50 120 120 Overloaded Moves . | . . . Propulsion Burnouts . | . . . Robots Hopped . | . . . Cave-ins Triggered . | . . . Exploration Rate (%) 25 | 2 53 20 Regions Visited 2 Branch Regions . Pre-discovered Areas . | . . . Known Exits Taken . | . . . Unknown Exits Taken 2 | 1 1 . Scrap Searched . | . . . Spaces Dug . | . . . Terrain Destroyed 28 | . 28 . Melee . | . . . Projectile . | . . . AOE 28 | . 28 . Actions | -11 -10 -9 --------- Run | Scr Mat Mat Total 419 | 1 257 161 Wait 7 | . 7 . Move 376 | . 232 144 Hop . | . . . Pick Up 7 | . 2 5 Fast Attach 7 | . 6 1 Attach 2 | . 2 . Detach . | . . . Swap 1 | . . 1 Drop 8 | 1 3 4 Fire 8 | . 5 3 Melee . | . . . Ram . | . . . Kick 2 | . . 2 Crush . | . . . Escape Stasis . | . . . Rewire 1 | . . 1 Trap . | . . . Miscellaneous . | . . . Route ------- -11/Scrapyard -10/Materials -9/Materials History --------- Turn | Location | Event 2 | -11/Scrapyard | Discovered new exit (range 0) 2 | -11/Scrapyard | Entered Materials 192 | -10/Materials | Discovered new exit (range 8) 202 | -10/Materials | Entered another Materials area 202 | -9/Materials | Evolved 2 slots: Propulsion x1, Utility x1 303 | -9/Materials | Build established: Mutant 394 | -9/Materials | Self-destructed Last Messages --------------- 00252_ Dropped Grenade Launcher. 00252_ Acquired EMP Blaster. 00282_ Dropped Grenade Launcher. 00283_ Acquired Mni. Grenade Launcher. 00326_ K-01 Serf collects debris. 00327_ Dropped Grenade Launcher. 00328_ Attempting to rewire A-02 Transporter. 00328_ A-02 Transporter is broken beyond repair. 00329_ K-01 Serf collects debris. 00369_ Slammed into K-01 Serf. 00369_ Destabilizing: Core damaged (-8). 00384_ Electrolysis Chamber disabled. 00384_ G-34 Mercenary destroyed. 00384_ Door malfunctions. 00384_ K-01 Serf collects debris. 00389_ Slammed into L-31 Rogue. 00389_ Destabilizing: System corrupted (+2). 00390_ K-01 Serf collects debris. 00393_ T-07 Excavator is excavating. 00393_ K-01 Serf collects debris. Map ----- +----------------------------------------------------+ | ???????????????????????????????????????????? | | ???????????????????????????????????????????? | | ???????????????????????????????????????????? | | ???????????????????????????????????????????? | | ???????????????????????????????????????????? | | ???????????????????????????????????????????? | | ???????????????????????????????????????????? | | ???????????????????????????????????????????? | | ???????????????????????????????????????????? | | ???????????????????????????????????????????? | | ???????????????????????????????????????????? | | ???????????????????????????????????????????? | | ?????????????????????#####?????????????????? | | ???????????????????? #?????????????????? | | ???????????????????? #?????????????????? | | ???????????????????? Y #?????????????????? | | ???????????????????? #?????????????????? | | ???????????????????? ] ??????????????????? | | ????????????????????# #??????????????????? | | ????????????????????# #??????????????????? | | ??????????????####### #??????????????????? | | ??????????????# #??????????????????? | | ??????????????# t ##?##??????????????? | | ??????????????# ##t########???????? | | ??????????????# ???????? | | ??????????????+ @ k ??????? | | ??????????????# !% r ??????? | | ??????????????# glk ??????? | | ??????????????########/###########?????????? | | ?????????????????# #???????????????? | | ?????????????????# "" #???????????????? | | ?????????????????# """ #???????????????? | | ?????????????????# """ #???????????????? | | ?????????????????# ]] #???????????????? | | ?????????????????# ]] #???????????????? | | ?????????????????# ]] ] #???????????????? | | ?????????????????# #???????????????? | | ?????????????????#####+#####???????????????? | | ?????????????????????# #???????????????????? | | ??????????????######## #???????????????????? | | ??????????????# # #########???????????? | | ??????????????# # # ]] #???????????? | | ??????????????#""" + + ] ]] #???????????? | | ??????????????#""" # # ] #???????????? | | ??????????????#""" # # #???????????? | | ??????????????# # #? #???????????? | | ??????????????######## #?#######???????????? | | ?????????????????????# ####????????????????? | | ?????????????????????# ]]##???????????????? | | ?????????????????????# ]#???????????????? | +----------------------------------------------------+ Best States ------------- Heat Dissipation 28 Energy Generation 5 Energy Capacity 100 Matter Stores 80 Matter Capacity 300 Sight Range 16 Terrain Scan Density 10 Evasion (%) 50 Targeting Accuracy 10 Offensive Hacking 10 Item Schematics ----------------- Lrg. Storage Unit | -10/Materials | Hacked Robot Schematics ------------------ None Fabricated ------------ Nothing Alien Tech Used ----------------- None Achievements -------------- None Challenges ------------ None Game ------ Seed TrapProtonArray Manual? 0 Play Time 00:06:11 Cumulative 299.0 hours Start 2020.02.04 @ 16:02:42 End 2020.02.04 @ 16:07:14 Sessions 1 Manual Loads 0 Difficulty Rogue Special Mode AFD2018/Launchers Game No. 121 Rogue 43 Adventurer 48 Explorer 30 Win Type - Total 46 Types 30/5/4/2/2/1/2 Lore% 98 Gallery% 100 Achievement% 88 Wizard Run 0 Options --------- ASCII 0 Keyboard 0 Movement Numpad Keybinds 1 Fullscreen 0 Font 18/Terminus Map View 76x50 Tactical HUD 1 Map Filters NONE Filters NONE Steam 1 RUN: c6bc2243-e0d0-4fc1-9c76-392a37255b14